[Event "21st Bangkok CC Open 2024"]
[Site "Bangkok"]
[Date "2024.04.21"]
[Round "9.3"]
[White "Morris, James"]
[Black "Srihari L R"]
[Result "1/2-1/2"]
[ECO "B13"]
[WhiteElo "2432"]
[BlackElo "2482"]
[Annotator "TA"]
[PlyCount "58"]
[EventDate "2024.04.13"]
[EventType "swiss"]
[EventCountry "THA"]
[SourceTitle "playchess.com"]
[Source "ChessBase"]
[SourceQuality "1"]
[TimeControl "40/5400+30:1800+30"]

{[%evp 15,58,0,18,0,0,0,0,0,0,10,14,-9,-6,0,0,-14,49,-3,-22,-27,-12,-33,-14,-17,-7,-8,0,0,0,0,21,15,45,31,41,28,40,57,54,-17,-17,-22,-12,-16,-20]} 1. e4 {[%emt 0:05:27]} c6 {[%emt 0:00:38]} 2. d4 {[%emt 0:00:58]} d5 {[%emt 0:00:18]} 3. exd5 {[%emt 0:00:53]} cxd5 {[%emt 0:00:05]} 4. Bd3 {[%emt 0:00:04]} Nc6 {[%emt 0:00:15]} 5. c3 {[%emt 0:00:05]} Nf6 {[%emt 0:00:08]} 6. h3 {[%emt 0:00:44]} e5 {[%emt 0:00:48]} 7. dxe5 {[%emt 0:00:05]} Nxe5 {[%emt 0:00:04]} 8. Qe2 {[%emt 0:00:04]} Qe7 {[%emt 0:00:06]} 9. Bc2 {[%emt 0:00:17]} b6 {[%emt 0:03:59][%cal Oc8a6] [#] ...Ba6! is the strong threat.} 10. Na3 {[%emt 0:00:23]} Ba6 {[%emt 0:00:08]} 11. Nb5 {[%emt 0:00:02]} (11. Qxa6 $2 Nf3+ 12. Kf1 Qe1#) 11... O-O-O {[%emt 0:00:24]} 12. a4 {[%emt 0:00:04]} d4 {[%emt 0:11:20]} 13. cxd4 {[%emt 0:02:09]} (13. Bf4 {looks sharper.} d3 14. Qxe5 Qxe5+ 15. Bxe5 dxc2 16. Nf3) 13... Rxd4 {[%emt 0:00:16]} 14. Nxd4 {[%emt 0:00:07]} Bxe2 {[%emt 0:00:13]} 15. Ngxe2 {[%emt 0:00:05]} Nd5 {[%emt 0:16:59]} ({Black should try} 15... Qc7 $11 16. O-O Bc5) 16. O-O {[%emt 0:08:21]} (16. Bf5+ $14 Nd7 17. Bd2 (17. Bxd7+ Qxd7 18. O-O Kb7 $17)) 16... Qf6 $11 {[%emt 0:11:44]} 17. Be4 {[%emt 0:14:08] [#]} Bc5 $1 {[%emt 0:05:10]} 18. Nb5 {[%emt 0:21:48]} (18. Bxd5 Rd8) 18... Rd8 {[%emt 0:06:45][%cal Bh8d8,Bd8d5,Bd5d7][%mdl 32] ...a6 would now be deadly.} 19. Nxa7+ {[%emt 0:00:36]} Kb8 {[%emt 0:00:03]} 20. Nb5 {[%emt 0:00:38][%cal Oa4a5]} Qh4 {[%emt 0:06:22]} 21. Bxd5 {[%emt 0:01:15]} Rxd5 {[%emt 0:02:00]} 22. Bf4 {[%emt 0:00:04] And now Nbc3 would win. Chess con chili.} f6 {[%emt 0:00:49]} 23. Nbc3 {[%emt 0:03:09] Excellent horsemanship.} Rd7 {[%emt 0:00:29]} 24. a5 {[%emt 0:01:00]} g5 {[%emt 0:05:32]} 25. Bg3 {[%emt 0:07:13]} Qb4 {[%emt 0:01:44][%csl LRa5,LRb2]} 26. axb6 {[%emt 0:00:08]} Bxb6 {[%emt 0:00:43][%cal Ob8b7]} 27. Rfd1 {[%emt 0:00:42]} ({Better is} 27. Ra4 $14 Qe7 (27... Qxb2 28. Rb1 $18) 28. Re4) 27... Rxd1+ {[%emt 0:00:48] The position is equal.} (27... Qxb2 $2 {too greedy.} 28. Rdb1 $18) 28. Rxd1 {[%emt 0:00:04]} Kb7 {[%emt 0:03:17]} (28... Qxb2 $2 {is the wrong capture.} 29. Rb1 Qd2 30. Rxb6+ $18) 29. Nd5 $1 {[%emt 0:08:22][%csl LRb4,LRf6]} Qb3 {[%emt 0:03:30] Weighted Error Value: White=0.13 (very precise) /Black=0.10 (very precise) .  Mistake:       	White=2     	Black=1      Inaccurate:     	---       	Black=2      OK:         	White=9     	Black=10     Best:        	White=1     	Black=1      Strong:       	White=1     	Black=1} 1/2-1/2

[Event "21st Bangkok CC Open 2024"]
[Site "Bangkok"]
[Date "2024.04.21"]
[Round "9.4"]
[White "Pranesh M"]
[Black "Zhao, Zong-Yuan"]
[Result "1/2-1/2"]
[ECO "B62"]
[WhiteElo "2538"]
[BlackElo "2485"]
[Annotator "TA"]
[PlyCount "90"]
[EventDate "2024.04.13"]
[EventType "swiss"]
[EventCountry "THA"]
[SourceTitle "playchess.com"]
[Source "ChessBase"]
[SourceQuality "1"]
[TimeControl "40/5400+30:1800+30"]

{[%evp 13,90,36,22,1,16,22,35,11,23,20,20,8,23,15,25,11,10,10,4,-31,-10,-9,-6,-20,-37,-29,-29,-30,-22,-24,-6,-21,0,-50,-51,-51,-14,-35,-35,-70,-35,-36,-36,-37,-29,-29,-32,-45,-8,-43,-11,-27,-30,-90,-27,-29,-35,-21,-31,-25,-29,-21,8,0,0,0,0,0,0,0,0,0,0,0,0,0,0,0,0]} 1. e4 {[%emt 1:31:00]} c5 {[%emt 0:06:35]} 2. Nf3 {[%emt 0:00:00]} d6 {[%emt 0:00:08]} 3. d4 {[%emt 0:00:00]} cxd4 {[%emt 0:00:04]} 4. Nxd4 {[%emt 0:00:00]} Nf6 {[%emt 0:00:04]} 5. Nc3 {[%emt 0:00:00]} Nc6 {[%emt 0:00:03]} 6. Bg5 {[%emt 0:00:00]} e6 {[%emt 0:00:22]} 7. Bb5 {[%emt 0:00:00]} Bd7 {[%emt 0:00:07]} 8. Qd3 {[%emt 0:00:00]} Qb6 {[%emt 0:00:04] [#] ...Nb4 would now be deadly.} 9. O-O-O {[%emt 0:00:00]} Nxd4 {[%emt 0:01:11]} 10. Qxd4 {[%emt 0:00:00] White is slightly better.} Qxd4 {[%emt 0:00:56]} 11. Rxd4 {[%emt 0:00:00]} a6 {[%emt 0:00:05]} 12. Bxd7+ {[%emt 0:00:00]} Nxd7 {[%emt 0:00:02]} 13. Rhd1 {[%emt 0:00:00]} h5 {[%emt 0:14:44]} 14. Rc4 {[%emt 0:00:00]} b5 {[%emt 0:31:23]} 15. Rc7 {[%emt 0:00:00]} h4 $1 {[%emt 0:11:04]} 16. Be3 {[%emt 0:00:00]} h3 {[%emt 0:07:20]} 17. g3 {[%emt 0:00:00]} Kd8 {[%emt 0:05:08]} 18. Rc6 {[%emt 0:00:00]} Ne5 $1 {[%emt 0:00:05]} 19. Bb6+ $1 {[%emt 0:00:00]} Ke8 {[%emt 0:00:01]} 20. Rc7 {[%emt 0:00:00]} Nf3 {[%emt 0:05:24]} 21. Rh1 {[%emt 0:00:00]} Be7 {[%emt 0:03:38]} 22. Ne2 {[%emt 0:00:00]} Bd8 {[%emt 0:05:45]} 23. Rc3 {[%emt 0:00:00]} (23. Rb7 $11) 23... Bxb6 $15 {[%emt 0:01:16]} 24. Rxf3 {[%emt 0:00:00]} Rc8 {[%emt 0:01:28]} 25. Nf4 {[%emt 0:00:00]} Ke7 {[%emt 0:00:40]} 26. Re1 {[%emt 0:00:00]} g5 {[%emt 0:01:51][%cal Bg7g5,Bg5g4][%mdl 32]} 27. Nd3 {[%emt 0:00:00][%cal Bf4d3,Bd3e1,Be1f3,Bf3d2,Bd2b3][%mdl 32] White is weak on the dark squares} a5 $36 {[%emt 0:00:22][%mdl 2048] White is under pressure.} 28. Re2 {[%emt 0:00:00]} b4 {[%emt 0:00:08]} 29. Ne1 {[%emt 0:00:00]} Rc4 {[%emt 0:00:25]} 30. Rd3 {[%emt 0:00:00]} f6 {[%emt 0:03:03]} 31. Nf3 {[%emt 0:00:00]} g4 {[%emt 0:01:02]} 32. Nd2 {[%emt 0:00:00]} Rd4 {[%emt 0:00:15]} 33. Kd1 {[%emt 0:00:00]} (33. Rb3 $11 {keeps the balance.}) 33... Rc8 {[%emt 0:00:59]} (33... Rxd3 $17 34. cxd3 a4) 34. f3 $11 {[%emt 0:00:00]} Rxd3 {[%emt 0:00:14]} 35. cxd3 {[%emt 0:00:00][%mdl 4096] Endgame. KRB-KRN} Bd4 {[%emt 0:00:00]} 36. fxg4 {[%emt 0:00:00]} Bxb2 {[%emt 0:00:02]} 37. Nb3 {[%emt 0:00:00][%csl LRa5,LRb2] Prevents Rc1+} Ba3 {[%emt 0:00:43] The position is equal.} (37... Be5 $5 38. Nxa5 Rc3 $19) 38. Nxa5 {[%emt 0:00:00]} Rc1+ {[%emt 0:00:42]} 39. Kd2 {[%emt 0:00:00]} Rg1 {[%emt 0:01:28]} 40. Nb3 {[%emt 0:00:00] Repels Bc1+} Bb2 {[%emt 0:00:47]} 41. Ke3 {[%emt 0:17:24]} Bc3 {[%emt 0:30:16]} 42. Rf2 {[%emt 0:12:46]} e5 {[%emt 0:00:00]} 43. Ke2 {[%emt 0:00:00]} Ke6 {[%emt 0:00:00]} 44. Rf1 {[%emt 0:00:00]} Rg2+ {[%emt 0:00:00]} 45. Rf2 {[%emt 0:00:00] [#] And now Rxg2 would win.} Rg1 {[%emt 0:03:06] Weighted Error Value: White=0.10 (very precise) /Black=0.10 (very precise) .  Mistake:       	White=2     	Black=1      Inaccurate:     	White=3     	Black=5      OK:         	White=16    	Black=16     Best:        	White=2     	Black=4      Strong:       	White=1     	Black=2} 1/2-1/2

[Event "21st Bangkok CC Open 2024"]
[Site "Bangkok"]
[Date "2024.04.21"]
[Round "9.5"]
[White "Peng, Xiongjian"]
[Black "Bersamina, Paulo"]
[Result "1/2-1/2"]
[ECO "A21"]
[WhiteElo "2521"]
[BlackElo "2424"]
[Annotator "TA"]
[PlyCount "105"]
[EventDate "2024.04.13"]
[EventType "swiss"]
[EventCountry "THA"]
[SourceTitle "playchess.com"]
[Source "ChessBase"]
[SourceQuality "1"]
[TimeControl "40/5400+30:1800+30"]

{[%evp 37,105,-68,-25,-35,-27,-32,-12,-81,-58,-65,0,0,0,0,21,20,61,50,56,66,67,18,26,41,69,0,0,0,0,0,0,0,0,0,0,0,0,0,0,0,0,0,0,0,0,0,0,0,0,0,0,0,0,0,0,0,0,0,0,0,0,0,0,0,0,0,0,0,0,0]} 1. c4 {[%emt 0:00:03]} e5 {[%emt 0:09:28]} 2. g3 {[%emt 0:00:39]} d6 {[%emt 0:00:58]} 3. Nc3 {[%emt 0:00:43]} Be7 {[%emt 0:01:22]} 4. Nf3 {[%emt 0:06:14]} f5 {[%emt 0:03:42]} 5. Bh3 {[%emt 0:00:28]} c5 {[%emt 0:09:46]} 6. Nd5 $146 {[%emt 0:12:10] A21: English Opening: 1...e5 2 Nc3.} ({Predecessor:} 6. d3 Nc6 7. Nd5 Nf6 8. Nxe7 Qxe7 9. Nh4 f4 10. Bxc8 Rxc8 11. gxf4 O-O 12. Ng2 {½-½ Boruchovsky,A (2551)-Caruana,F (2783) Olympiad-44 Chennai 2022 (5.1)}) 6... Nf6 {[%emt 0:02:57]} 7. Nxe7 {[%emt 0:00:31]} Qxe7 {[%emt 0:00:08]} 8. Nh4 {[%emt 0:00:19]} O-O {[%emt 0:08:41]} 9. Bxf5 {[%emt 0:14:01]} Bxf5 {[%emt 0:02:01]} 10. Nxf5 {[%emt 0:00:39]} Qe6 {[%emt 0:00:31]} 11. Ne3 {[%emt 0:02:47]} Qh3 {[%emt 0:00:48]} 12. d3 {[%emt 0:03:17]} Nc6 {[%emt 0:02:01]} 13. Bd2 {[%emt 0:02:48]} Nd4 {[%emt 0:01:16]} 14. Bc3 {[%emt 0:02:48]} a6 {[%emt 0:02:28]} 15. b3 {[%emt 0:09:08]} b5 {[%emt 0:07:09]} 16. f3 {[%emt 0:01:38]} Rae8 {[%emt 0:04:59]} 17. Qd2 {[%emt 0:01:45]} b4 {[%emt 0:02:50]} 18. Bb2 {[%emt 0:00:13]} a5 {[%emt 0:00:10]} 19. O-O-O {[%emt 0:06:47]} Qd7 {[%emt 0:02:53]} (19... a4 $5 20. Bxd4 exd4 $17) 20. Nc2 {[%emt 0:06:28]} a4 {[%emt 0:01:10]} 21. Bxd4 {[%emt 0:01:13]} exd4 {[%emt 0:00:21]} 22. Kb2 {[%emt 0:01:51]} (22. Rhe1 $1 $11) 22... Qb7 {[%emt 0:02:30]} 23. Rhe1 {[%emt 0:01:22]} Nd7 {[%emt 0:03:00]} (23... d5 $1 $15) 24. f4 $11 {[%emt 0:00:15]} d5 {[%emt 0:11:27]} 25. e3 {[%emt 0:00:45]} dxe3 {[%emt 0:00:27]} (25... axb3 $6 26. axb3 dxe3 27. Rxe3 $16) 26. Rxe3 {[%emt 0:00:04]} d4 {[%emt 0:00:11]} 27. Rxe8 {[%emt 0:00:21]} Rxe8 {[%emt 0:00:02]} (27... a3+ 28. Kc1 Rxe8 29. Re1 Rxe1+ 30. Nxe1 $11 (30. Qxe1 Nf6 $11)) 28. Re1 {[%emt 0:00:28]} (28. bxa4 Nb6 29. Re1 Nxa4+ 30. Kb3 Rf8 31. Kxa4 b3 $17) 28... Rxe1 {[%emt 0:01:43]} 29. Qxe1 {[%emt 0:00:05]} (29. Nxe1 $14 {deserves consideration.} a3+ 30. Kc2) 29... a3+ $11 {[%emt 0:01:05]} 30. Kc1 {[%emt 0:00:29]} Nf6 {[%emt 0:03:36]} 31. Qe6+ {[%emt 0:00:28]} ({Better is} 31. Qf1 $14) 31... Kf8 $11 {[%emt 0:00:31]} 32. Ne1 {[%emt 0:09:10]} (32. Qd6+ Qe7 33. Qc6 h6 $17) 32... Qh1 {[%emt 0:00:14]} 33. h3 {[%emt 0:03:10]} Qg1 {[%emt 0:04:11]} 34. g4 {[%emt 0:01:19]} Qf2 {[%emt 0:01:58]} 35. Qc8+ {[%emt 0:02:21]} Kf7 {[%emt 0:00:06]} 36. Qb7+ {[%emt 0:00:21]} Kf8 {[%emt 0:00:37]} 37. Qc8+ {[%emt 0:00:51]} Kf7 {[%emt 0:00:10]} 38. Qc7+ {[%emt 0:00:11]} Kg8 {[%emt 0:01:31]} 39. Qb8+ {[%emt 0:03:27]} Kf7 {[%emt 0:00:08]} 40. Qa7+ {[%emt 0:00:10]} Ke8 {[%emt 0:02:21]} 41. Qb8+ {[%emt 0:32:07]} Kf7 {[%emt 0:31:17]} 42. Qb7+ {[%emt 0:01:59]} Kf8 {[%emt 0:00:56]} 43. Nf3 {[%emt 0:02:32]} Qb2+ {[%emt 0:02:28]} (43... Qxa2 44. Qc8+ Ne8 45. Qxc5+ Kg8 46. Qxd4 $16 (46. Qd5+ Kh8 $14)) 44. Kd1 {[%emt 0:00:25]} Qb1+ {[%emt 0:00:05]} 45. Ke2 {[%emt 0:00:36]} Qxa2+ {[%emt 0:00:36]} 46. Nd2 {[%emt 0:00:00]} Qb2 {[%emt 0:00:00]} 47. Qc8+ {[%emt 0:00:00]} Kf7 {[%emt 0:00:00]} 48. Qc7+ {[%emt 0:00:00]} Kg8 {[%emt 0:00:00]} (48... Kg6 49. f5+ Kg5 50. Qxg7+ Kf4 51. Qxf6 Kg3 52. Qe5+ Kg2 53. Qe4+ (53. Qxc5 a2 $11) 53... Kg1 54. Qf4 (54. f6 a2 $18)) 49. Qc8+ {[%emt 0:00:00]} (49. g5 $5 a2 $8 50. Qd8+ (50. gxf6 gxf6 51. Qc8+ Kg7 $11) 50... Kf7 51. gxf6 gxf6 (51... a1=B 52. Qe7+ Kg6 53. fxg7) 52. Qd7+ Kf8 53. Qe6 $11) 49... Kf7 {[%emt 0:00:00]} 50. Qc7+ {[%emt 0:00:00]} Kg8 {[%emt 0:00:00]} (50... Kg6 51. f5+ Kg5 52. Qxg7+ Kh4 53. Qxf6+ Kg3 54. Qe5+ Kg2 55. Qe4+ (55. Qxc5 a2 $11) 55... Kg1 56. Qf4 (56. f6 a2 $18)) 51. g5 {[%emt 0:00:00]} a2 $1 {[%emt 0:00:00]} 52. gxf6 {[%emt 0:00:00]} gxf6 {[%emt 0:00:00]} 53. Qc8+ {[%emt 0:00:00]} 1/2-1/2

[Event "21st Bangkok CC Open 2024"]
[Site "Bangkok"]
[Date "2024.04.21"]
[Round "9.6"]
[White "Urazayev, Arystanbek"]
[Black "Lalit Babu M R"]
[Result "1/2-1/2"]
[ECO "B13"]
[WhiteElo "2471"]
[BlackElo "2508"]
[Annotator "TA"]
[PlyCount "96"]
[EventDate "2024.04.13"]
[EventType "swiss"]
[EventCountry "THA"]
[SourceTitle "playchess.com"]
[Source "ChessBase"]
[SourceQuality "1"]
[TimeControl "40/5400+30:1800+30"]

{[%evp 18,96,71,70,80,72,79,32,75,25,60,60,57,52,84,36,61,0,0,0,0,0,0,-15,0,-13,26,26,32,-33,-15,-38,41,-26,0,-102,-27,-32,-35,-35,-35,-31,-39,-108,-27,-22,-25,-33,-4,0,-5,-12,-11,-17,-31,-15,-20,-43,-46,-68,-79,-78,-75,-89,-95,-112,-100,-99,-100,-98,-108,-100,-56,-54,-56,-54,0,-72,0,-52,0]} 1. e4 {[%emt 0:05:08]} c6 {[%emt 0:05:59]} 2. Nf3 {[%emt 0:00:06]} d5 {[%emt 0:00:05]} 3. exd5 {[%emt 0:00:04]} cxd5 {[%emt 0:00:05]} 4. d4 {[%emt 0:00:03]} Nc6 {[%emt 0:00:40]} 5. Bb5 {[%emt 0:00:06]} Nf6 {[%emt 0:01:40]} 6. O-O {[%emt 0:00:25] B13: Caro-Kann: Exchange Variation and Panov-Botvinnik Attack.} e6 {[%emt 0:08:15]} 7. Re1 {[%emt 0:00:18]} Be7 {[%emt 0:00:58]} 8. c3 {[%emt 0:02:26]} Bd7 {[%emt 0:04:17]} 9. Bd3 {[%emt 0:02:27]} Qc7 {[%emt 0:06:19]} 10. Nbd2 {[%emt 0:01:12]} O-O {[%emt 0:05:23]} 11. Ne5 {[%emt 0:09:57]} Be8 $146 {[%emt 0:01:46]} ({Predecessor:} 11... Rac8 12. Ndf3 Nxe5 13. Nxe5 Bc6 14. Bg5 h6 15. Bh4 Rfe8 16. Re3 {1-0 Wiener,R (1800)-Peroutik,J (1875) CZE-ch qual Sec56 email 2008}) 12. f4 {[%emt 0:03:15]} (12. Ndf3 $16) 12... Bd6 {[%emt 0:16:11]} 13. Re3 {[%emt 0:11:04]} (13. Qf3 $16) 13... Ne7 {[%emt 0:03:34]} 14. Rh3 {[%emt 0:04:31]} h6 {[%emt 0:01:46]} 15. Qe2 {[%emt 0:11:36]} Nd7 {[%emt 0:06:52]} 16. Nf1 {[%emt 0:08:08]} (16. Ndf3 $16) 16... f5 {[%emt 0:10:16]} 17. Be3 {[%emt 0:04:39]} (17. g4 $14) 17... Nf6 $11 {[%emt 0:00:20]} 18. Rc1 {[%emt 0:00:17]} Ne4 {[%emt 0:00:47]} 19. Nd2 {[%emt 0:06:43]} a6 {[%emt 0:01:10]} 20. c4 {[%emt 0:01:50]} Qa5 {[%emt 0:08:46]} 21. a3 {[%emt 0:06:42]} Bc6 {[%emt 0:03:50]} 22. Nxc6 {[%emt 0:03:32]} Nxc6 {[%emt 0:01:09]} 23. Bxe4 {[%emt 0:02:01]} (23. Nf3 $14) 23... dxe4 {[%emt 0:01:27]} 24. c5 {[%emt 0:01:04]} Be7 {[%emt 0:02:00]} (24... Bc7 $15) 25. Nc4 {[%emt 0:03:30]} (25. Qc4 $1 $14) 25... Qc7 {[%emt 0:00:35]} 26. Nb6 {[%emt 0:00:05]} (26. g4 $11 {keeps the balance.}) 26... Rae8 {[%emt 0:00:30]} (26... Rad8 $17 27. Qc4 Kh7) 27. Qc4 {[%emt 0:01:45]} Bd8 {[%emt 0:00:13]} 28. d5 {[%emt 0:02:08]} exd5 {[%emt 0:00:04]} 29. Nxd5 {[%emt 0:00:35]} Qf7 {[%emt 0:00:04]} 30. Bf2 {[%emt 0:02:57]} (30. b4 $15) 30... Ne7 {[%emt 0:03:22]} (30... Na5 $17 31. Qa2 Bc7) 31. Nxe7+ $11 {[%emt 0:00:01]} Rxe7 {[%emt 0:00:03]} 32. Rb3 {[%emt 0:04:30]} Qxc4 {[%emt 0:02:28]} 33. Rxc4 {[%emt 0:00:01]} Rd7 {[%emt 0:00:04]} 34. Rd4 {[%emt 0:01:56]} Rff7 {[%emt 0:00:23]} 35. Kf1 {[%emt 0:01:14]} Rxd4 {[%emt 0:01:33]} 36. Bxd4 {[%emt 0:00:02]} Rd7 {[%emt 0:00:09]} 37. Be3 {[%emt 0:01:18]} Kf7 {[%emt 0:00:19]} 38. Rc3 {[%emt 0:00:33]} Bf6 {[%emt 0:00:42]} 39. Rb3 {[%emt 0:00:52]} Ke6 {[%emt 0:01:40]} 40. Ke2 {[%emt 0:00:22]} Kd5 {[%emt 0:00:58]} 41. Rb4 {[%emt 0:11:05]} Be7 {[%emt 0:14:52]} 42. g4 {[%emt 0:01:07]} fxg4 {[%emt 0:02:50]} ({Of course not} 42... Bxc5 $6 43. Bxc5 Kxc5 44. gxf5 $14) 43. Rd4+ {[%emt 0:00:05]} Kc6 {[%emt 0:00:04]} 44. Rxe4 {[%emt 0:00:08]} Bf6 {[%emt 0:00:51]} 45. Rb4 {[%emt 0:05:16]} Bd8 {[%emt 0:03:35]} 46. Re4 {[%emt 0:00:52]} Bf6 {[%emt 0:07:44]} 47. Rb4 $1 {[%emt 0:00:33]} Bd8 {[%emt 0:02:24]} 48. Re4 $1 {[%emt 0:00:04]} Bf6 {[%emt 0:00:18]} ({Black should play} 48... Re7 $15 49. Kd3 h5) 1/2-1/2

[Event "21st Bangkok CC Open 2024"]
[Site "Bangkok"]
[Date "2024.04.21"]
[Round "9.7"]
[White "Das, Sayantan"]
[Black "Harsh Suresh"]
[Result "1-0"]
[ECO "C77"]
[WhiteElo "2507"]
[BlackElo "2413"]
[Annotator "TA"]
[PlyCount "110"]
[EventDate "2024.04.13"]
[EventType "swiss"]
[EventCountry "THA"]
[SourceTitle "playchess.com"]
[Source "ChessBase"]
[SourceQuality "1"]
[TimeControl "40/5400+30:1800+30"]

{[%evp 12,110,45,19,38,33,29,30,81,69,90,81,83,19,54,50,41,18,25,11,14,14,60,51,67,49,260,99,98,85,123,104,128,75,80,48,42,43,41,41,43,34,32,0,126,0,36,24,32,7,8,4,3,0,6,0,27,8,12,0,0,0,120,127,77,0,17,0,0,0,0,0,0,0,381,360,433,432,568,584,5197,5700,29971,29972,29973,29975,29975,29976,29976,29977,29976,29977,29980,29981,29981,29982,29983,29984,29984,29985,29982]} 1. e4 {[%emt 0:07:41]} e5 {[%emt 0:00:38]} 2. Nf3 {[%emt 0:00:15]} Nc6 {[%emt 0:00:09]} 3. Bb5 {[%emt 0:00:13][%cal Bf1b5,Bb5a4,Ba4b3,Bb3d5][%mdl 32]} a6 {[%emt 0:00:07]} 4. Ba4 {[%emt 0:00:06]} Nf6 {[%emt 0:00:07]} 5. O-O {[%emt 0:00:59]} b5 {[%emt 0:03:10]} 6. Bb3 {[%emt 0:00:06]} Bc5 {[%emt 0:00:07]} 7. Nc3 {[%emt 0:00:27]} d6 {[%emt 0:07:18]} 8. Nd5 $1 {[%emt 0:00:28]} h6 {[%emt 0:11:53]} 9. c3 {[%emt 0:00:45]} Nxd5 {[%emt 0:09:39]} (9... O-O $11) 10. Bxd5 $16 {[%emt 0:08:08]} Bd7 {[%emt 0:00:25]} 11. d4 {[%emt 0:00:40]} Bb6 {[%emt 0:00:39]} 12. Be3 {[%emt 0:03:13]} (12. a4 $16) 12... O-O {[%emt 0:05:19]} 13. Qd2 {[%emt 0:05:26][%cal Oe3h6]} Qf6 {[%emt 0:00:57]} 14. a4 {[%emt 0:05:28]} bxa4 {[%emt 0:03:56]} 15. dxe5 {[%emt 0:13:46]} (15. Rxa4 Nxd4 16. cxd4 (16. Bxd4 exd4 17. Rc4 Bb5 $17) 16... Bxa4 $17) 15... dxe5 {[%emt 0:00:57]} 16. Rxa4 {[%emt 0:00:57]} Nd4 {[%emt 0:14:19]} 17. cxd4 $14 {[%emt 0:08:49][%cal Bc3d4,Bd4e5][%mdl 32]} Bxa4 {[%emt 0:00:09]} 18. dxe5 {[%emt 0:13:09]} Qd8 {[%emt 0:08:49]} (18... Qg6 $14) 19. Bxb6 $2 {[%emt 0:05:05]} (19. Bxh6 $1 $18 {[%cal Od2f4] Strongly threatening Qf4!} c6 20. Bg5) 19... cxb6 $16 {[%emt 0:00:58]} 20. Nd4 {[%emt 0:01:26][%cal Oe5e6] e6! would now be deadly.} Rc8 {[%emt 0:05:06]} 21. e6 {[%emt 0:04:14] Prevents Bd7. Black must now prevent Qb4.} Be8 {[%emt 0:00:06]} 22. Qf4 {[%emt 0:01:11] White has more active pieces.} (22. Qe3 $142) 22... fxe6 {[%emt 0:07:03] [#]} 23. Qxf8+ {[%emt 0:02:00]} Kxf8 {[%emt 0:00:02]} 24. Nxe6+ {[%emt 0:00:08]} (24. Bxe6 $2 Rc5 25. Nf3 Qf6 $19) 24... Ke7 {[%emt 0:00:02]} 25. Nxd8 {[%emt 0:00:06]} Kxd8 $14 {[%emt 0:00:02][%mdl 4096] Endgame. KRB-KRB} 26. f4 {[%emt 0:09:25]} Rc2 $1 {[%emt 0:00:57]} 27. Rf2 {[%emt 0:01:19]} Rc1+ {[%emt 0:00:02]} 28. Rf1 {[%emt 0:00:05]} Rc2 {[%emt 0:00:01]} 29. b3 {[%emt 0:00:13]} Ke7 {[%emt 0:02:25]} 30. g3 {[%emt 0:02:39]} a5 {[%emt 0:01:53]} 31. Rf2 {[%emt 0:01:21]} Rc3 {[%emt 0:00:18]} 32. Kg2 {[%emt 0:02:04]} Bd7 {[%emt 0:01:32]} 33. Rb2 {[%emt 0:03:01]} Kd6 {[%emt 0:05:27]} 34. Kf2 {[%emt 0:00:35]} Be6 {[%emt 0:05:05]} 35. Bxe6 {[%emt 0:01:22]} Kxe6 $11 {[%emt 0:00:02] KR-KR} 36. Ke2 {[%emt 0:00:21]} Kf6 {[%emt 0:00:28]} (36... g5 $11) 37. Kd2 $16 {[%emt 0:00:19]} Rf3 {[%emt 0:00:03] [#]} 38. Ke2 {[%emt 0:00:04]} (38. b4 $1 $16) 38... Rc3 $11 {[%emt 0:00:02]} 39. b4 {[%emt 0:01:43]} a4 {[%emt 0:00:15][%cal Ba5a4,Ba4a3][%mdl 32]} 40. b5 {[%emt 0:00:16]} a3 {[%emt 0:01:55]} 41. Rb4 {[%emt 0:03:20]} a2 {[%emt 0:02:37]} 42. Ra4 {[%emt 0:00:58]} Rc4 $2 {[%emt 0:00:10][%mdl 8192]} 43. e5+ $18 {[%emt 0:00:31]} (43. Rxc4 $2 a1=Q (43... a1=B $2 {perishes.} 44. Rc6+ Ke7 45. Rxb6 $18) 44. Rc6+ Kf7 45. Rxb6 Qb2+ 46. Kd3 Qxh2 (46... Qb1+ $2 47. Kc3 $19) 47. Rb7+ Kg6 48. f5+ Kh7 $19) (43. Rxa2 Rxe4+ 44. Kd3 Rb4 $11) 43... Kf5 {[%emt 0:05:03]} 44. Rxa2 {[%emt 0:01:14]} (44. Rxc4 $2 {is the wrong capture.} a1=Q (44... a1=B $2 {too greedy.} 45. Kf3 $18) 45. Rc7 Qa2+ 46. Kf1 g5 (46... Qxh2 $2 47. Rxg7 Ke4 48. Ra7 $19) 47. fxg5 hxg5 $19 (47... Kxe5 $2 48. gxh6 Kd6 49. Rc6+ Ke5 50. Rxb6 $19)) 44... g5 {[%emt 0:00:53]} 45. Kd3 {[%emt 0:03:45]} Rb4 {[%emt 0:09:10]} 46. Re2 {[%emt 0:04:42] White wants to mate with e6.} Rxb5 {[%emt 0:01:09]} 47. e6 {[%emt 0:01:20] White mates.} Rd5+ {[%emt 0:01:15]} 48. Kc4 {[%emt 0:00:08]} Rc5+ {[%emt 0:04:22] [#]} 49. Kd4 $1 {[%emt 0:00:49]} Rc8 {[%emt 0:00:10]} 50. e7 {[%emt 0:00:26]} Re8 {[%emt 0:00:35]} 51. fxg5 {[%emt 0:00:20]} hxg5 {[%emt 0:01:03]} 52. Kd5 {[%emt 0:00:08]} Kg4 {[%emt 0:05:46]} 53. Ke6 {[%emt 0:01:16]} Kh3 {[%emt 0:00:08]} 54. Kf7 {[%emt 0:00:22]} Rh8 {[%emt 0:00:13]} 55. e8=Q {[%emt 0:00:11]} Rxe8 {[%emt 0:00:08] Weighted Error Value: White=0.15 (very precise) /Black=0.49.  Loses game:     	---       	Black=2      Missed win:     	White=1     	---        Mistake:       	White=3     	Black=3      Inaccurate:     	White=2     	Black=6      OK:         	White=9     	Black=15     Best:        	White=8     	Black=5      Strong:       	White=1     	Black=1} 1-0